[Event "US Open 2021"]
[Site "Crowne Plaza Cherry Hill, United States"]
[Date "2021.08.06"]
[Round "7.7"]
[White "O'Brien, Matthew"]
[Black "Liang, Awonder"]
[Result "0-1"]
[TimeControl "40/100;SD/30;+30"]
[BlackTitle "GM"]
[WhiteElo "2309"]
[BlackElo "2674"]

1. e4 {[%clk 01:40:59]} c6 {[%clk 01:32:52]} {[%emt 00:08:19]} 2. Nc3 {[%clk
01:41:12]} {[%emt 00:00:09]} d5 {[%clk 01:32:54]} {[%emt 00:00:26]} 3. Nf3
{[%clk 01:41:23]} {[%emt 00:00:18]} Bg4 {[%clk 01:33:17]} {[%emt 00:00:45]} 4.
d4 {[%clk 01:39:55]} {[%emt 00:02:01]} Nf6 {[%clk 01:33:37]} 5. h3 {[%clk
01:35:08]} {[%emt 00:04:52]} Bxf3 {[%clk 01:32:45]} {[%emt 00:01:16]} 6. gxf3
{[%clk 01:35:16]} {[%emt 00:00:33]} e6 {[%clk 01:33:00]} {[%emt 00:00:25]} 7.
Qd3 {[%clk 01:31:58]} {[%emt 00:03:28]} Nbd7 {[%clk 01:30:26]} {[%emt
00:03:11]} 8. Rg1 {[%clk 01:27:17]} {[%emt 00:05:17]} g6 {[%clk 01:23:47]}
{[%emt 00:06:54]} 9. Bd2 {[%clk 01:19:03]} {[%emt 00:08:44]} Nb6 {[%clk
01:20:18]} {[%emt 00:04:22]} 10. Qe3 {[%clk 01:18:28]} {[%emt 00:00:58]} h5
{[%clk 01:19:20]} {[%emt 00:01:20]} 11. O-O-O {[%clk 01:17:02]} {[%emt
00:01:58]} Bh6 {[%clk 01:18:52]} {[%emt 00:00:48]} 12. Qe1 {[%clk 01:16:03]}
{[%emt 00:01:29]} Bxd2+ {[%clk 01:18:24]} {[%emt 00:00:58]} 13. Qxd2 {[%clk
01:15:37]} {[%emt 00:01:09]} Qe7 {[%clk 01:18:47]} 14. Kb1 {[%clk 01:15:07]}
{[%emt 00:00:54]} O-O-O {[%clk 01:18:07]} {[%emt 00:01:28]} 15. h4 {[%clk
01:12:07]} {[%emt 00:03:11]} dxe4 {[%clk 01:12:37]} {[%emt 00:06:00]} 16. fxe4
{[%clk 01:12:12]} {[%emt 00:00:27]} e5 {[%clk 01:12:59]} {[%emt 00:00:19]} 17.
Qe3 {[%clk 01:11:36]} {[%emt 00:00:53]} Ng4 {[%clk 01:12:11]} {[%emt 00:01:22]}
18. Bh3 {[%clk 01:08:30]} {[%emt 00:03:31]} Nc4 {[%clk 01:10:50]} {[%emt
00:02:07]} 19. Qg3 {[%clk 01:03:27]} {[%emt 00:05:16]} Qb4 {[%clk 01:04:14]}
{[%emt 00:07:18]} 20. b3 {[%clk 00:55:02]} {[%emt 00:08:57]} exd4 {[%clk
01:03:12]} {[%emt 00:01:20]} 21. Ne2 {[%clk 00:54:06]} {[%emt 00:01:26]} f5
{[%clk 00:48:23]} {[%emt 00:15:26]} 22. exf5 {[%clk 00:49:21]} {[%emt
00:05:16]} Nd2+ {[%clk 00:39:17]} {[%emt 00:09:53]} 23. Ka1 {[%clk 00:25:49]}
{[%emt 00:23:36]} d3 {[%clk 00:37:52]} {[%emt 00:02:01]} 24. c3 {[%clk
00:16:23]} {[%emt 00:09:57]} Nxb3+ {[%clk 00:37:09]} {[%emt 00:01:10]} 25. Kb2
{[%clk 00:16:18]} {[%emt 00:01:01]} Qe7 {[%clk 00:35:12]} {[%emt 00:02:17]} 26.
Nf4 {[%clk 00:15:14]} {[%emt 00:01:13]} Nc5 {[%clk 00:31:48]} {[%emt 00:03:56]}
27. f3 {[%clk 00:11:00]} {[%emt 00:04:46]} Na4+ {[%clk 00:30:44]} {[%emt
00:01:34]} 28. Kb3 {[%clk 00:11:05]} {[%emt 00:00:21]} Qc5 {[%clk 00:31:08]}
{[%emt 00:00:39]} 29. c4 {[%clk 00:08:07]} {[%emt 00:03:03]} Qd4 {[%clk
00:31:18]} {[%emt 00:00:20]} 30. Rc1 {[%clk 00:05:03]} {[%emt 00:03:27]} Qb2+
{[%clk 00:30:57]} {[%emt 00:00:55]} 31. Kxa4 {[%clk 00:05:03]} {[%emt
00:01:00]} Qxa2+ {[%clk 00:31:13]} 32. Kb4 {[%clk 00:05:25]} a5+ {[%emt
00:01:24]} 33. Kc5 {[%clk 00:04:53]} {[%emt 00:00:10]} Qa3+ {[%clk 00:31:33]}
34. Kb6 {[%clk 00:05:06]} {[%emt 00:01:06]} Qb4+ {[%clk 00:31:59]} 35. Ka7
{[%clk 00:05:20]} Qc5+ {[%clk 00:32:24]} 36. Ka8 {[%clk 00:05:42]} Kc7# 0-1

[Event "US Open 2021"]
[Site "Crowne Plaza Cherry Hill, United States"]
[Date "2021.08.06"]
[Round "7.8"]
[White "Shabalov, Alexander"]
[Black "Mabe, Chris"]
[Result "1-0"]
[TimeControl "40/100;SD/30;+30"]
[WhiteTitle "GM"]
[WhiteElo "2624"]
[BlackElo "2245"]

1. e4 {[%clk 01:32:12]} e6 {[%clk 01:40:39]} {[%emt 00:00:19]} 2. d4 {[%clk
01:32:06]} {[%emt 00:01:16]} d5 {[%clk 01:40:53]} {[%emt 00:00:07]} 3. Nc3
{[%clk 01:32:30]} Bb4 {[%clk 01:40:31]} {[%emt 00:00:32]} 4. e5 {[%clk
01:29:16]} {[%emt 00:03:41]} Ne7 {[%clk 01:40:45]} {[%emt 00:00:43]} 5. a3
{[%clk 01:29:33]} Bxc3+ {[%clk 01:41:06]} 6. bxc3 {[%clk 01:29:58]} {[%emt
00:00:04]} c5 {[%clk 01:41:26]} {[%emt 00:00:21]} 7. h4 {[%clk 01:30:03]}
{[%emt 00:00:14]} Qa5 {[%clk 01:41:03]} {[%emt 00:01:08]} 8. Bd2 {[%clk
01:29:51]} {[%emt 00:00:25]} Nbc6 {[%clk 01:39:20]} {[%emt 00:02:13]} 9. a4
{[%clk 01:21:44]} {[%emt 00:08:42]} O-O {[%clk 01:23:40]} {[%emt 00:16:04]} 10.
Nf3 {[%clk 01:09:51]} {[%emt 00:12:24]} f6 {[%clk 01:23:20]} {[%emt 00:00:47]}
11. exf6 {[%clk 01:04:19]} {[%emt 00:06:17]} Rxf6 {[%clk 01:23:40]} 12. Be2
{[%clk 01:04:10]} {[%emt 00:00:43]} Bd7 {[%clk 01:20:31]} {[%emt 00:03:32]} 13.
O-O {[%clk 01:04:12]} {[%emt 00:00:25]} Qc7 {[%clk 01:16:50]} {[%emt 00:04:18]}
14. dxc5 {[%clk 00:58:36]} {[%emt 00:06:00]} e5 {[%clk 01:09:22]} {[%emt
00:08:10]} 15. c4 {[%clk 00:56:07]} {[%emt 00:02:49]} d4 {[%clk 01:06:46]}
{[%emt 00:03:06]} 16. Ng5 {[%clk 00:53:45]} {[%emt 00:02:50]} Bf5 {[%clk
01:04:48]} {[%emt 00:02:38]} 17. Bd3 {[%clk 00:52:21]} {[%emt 00:01:45]} Nd8
{[%clk 00:51:59]} {[%emt 00:13:20]} 18. Rb1 {[%clk 00:46:37]} {[%emt 00:06:12]}
Ne6 {[%clk 00:50:07]} {[%emt 00:02:23]} 19. Qh5 {[%clk 00:33:47]} {[%emt
00:13:31]} Nxg5 {[%clk 00:41:08]} {[%emt 00:09:48]} 20. Bxg5 {[%clk 00:32:56]}
{[%emt 00:00:56]} Bg6 {[%clk 00:41:26]} {[%emt 00:00:06]} 21. Qg4 {[%clk
00:28:46]} {[%emt 00:04:40]} Ra6 {[%clk 00:38:53]} {[%emt 00:03:08]} 22. Rfe1
{[%clk 00:26:31]} {[%emt 00:02:40]} Rf8 {[%clk 00:36:00]} {[%emt 00:03:25]} 23.
Bxe7 {[%clk 00:21:36]} {[%emt 00:05:28]} Qxe7 {[%clk 00:36:20]} {[%emt
00:00:15]} 24. Qxd4 {[%clk 00:21:56]} {[%emt 00:00:23]} Re8 {[%clk 00:20:41]}
{[%emt 00:15:46]} 25. Qd5+ {[%clk 00:20:45]} {[%emt 00:01:53]} Bf7 {[%clk
00:17:49]} {[%emt 00:03:40]} 26. Rxb7 {[%clk 00:20:03]} {[%emt 00:00:40]} 1-0

[Event "US Open 2021"]
[Site "Crowne Plaza Cherry Hill, United States"]
[Date "2021.08.06"]
[Round "7.9"]
[White "Cooklev, Steven T"]
[Black "Matviishen, Viktor"]
[Result "0-1"]
[TimeControl "40/100;SD/30;+30"]
[BlackTitle "IM"]
[WhiteElo "2216"]
[BlackElo "2575"]

1. e4 {[%clk 01:39:38]} e5 {[%clk 01:40:55]} 2. Bc4 {[%clk 01:40:03]} Nf6
{[%clk 01:41:15]} 3. d3 {[%clk 01:40:28]} Bc5 {[%clk 01:41:38]} {[%emt
00:00:34]} 4. Nc3 {[%clk 01:40:47]} O-O {[%clk 01:41:35]} {[%emt 00:00:11]} 5.
Bg5 {[%clk 01:37:31]} {[%emt 00:03:47]} d6 {[%clk 01:40:32]} {[%emt 00:01:33]}
6. Qf3 {[%clk 01:36:24]} {[%emt 00:01:58]} c6 {[%clk 01:29:36]} {[%emt
00:11:14]} 7. Bxf6 {[%clk 01:15:50]} {[%emt 00:21:02]} Qxf6 {[%clk 01:29:59]}
{[%emt 00:00:08]} 8. Qxf6 {[%clk 01:16:17]} {[%emt 00:00:19]} gxf6 {[%clk
01:30:24]} 9. Nge2 {[%clk 01:16:44]} a5 {[%clk 01:26:08]} {[%emt 00:04:33]} 10.
a3 {[%clk 01:03:42]} {[%emt 00:13:58]} b5 {[%clk 01:26:23]} 11. Ba2 {[%clk
01:04:03]} Be6 {[%clk 01:26:31]} {[%emt 00:00:55]} 12. Ng3 {[%clk 00:59:09]}
{[%emt 00:04:46]} Nd7 {[%clk 01:24:35]} {[%emt 00:02:37]} 13. Nce2 {[%clk
00:57:46]} {[%emt 00:01:55]} b4 {[%clk 01:17:43]} {[%emt 00:07:22]} 14. a4
{[%clk 00:52:59]} {[%emt 00:05:14]} Rab8 {[%clk 01:14:06]} {[%emt 00:03:57]} 15.
Bc4 {[%clk 00:49:22]} {[%emt 00:04:45]} Bxc4 {[%clk 01:10:18]} {[%emt
00:03:39]} 16. dxc4 {[%clk 00:49:38]} {[%emt 00:00:37]} b3 {[%clk 01:10:43]} 17.
c3 {[%clk 00:49:40]} {[%emt 00:00:20]} Nb6 {[%clk 01:11:02]} {[%emt 00:00:05]}
18. Nh5 {[%clk 00:49:59]} {[%emt 00:00:09]} Rfd8 {[%clk 01:10:30]} {[%emt
00:01:14]} 19. Neg3 {[%clk 00:40:02]} {[%emt 00:10:13]} Nxc4 {[%clk 01:10:52]}
{[%emt 00:00:14]} 20. O-O-O {[%clk 00:40:07]} {[%emt 00:00:42]} d5 {[%clk
00:48:06]} {[%emt 00:22:52]} 21. Nf5 {[%clk 00:35:23]} {[%emt 00:05:22]} Kh8
{[%clk 00:38:59]} {[%emt 00:09:29]} 22. Nxf6 {[%clk 00:35:08]} {[%emt
00:00:44]} Nd6 {[%clk 00:39:01]} {[%emt 00:00:43]} 23. Ng4 {[%clk 00:17:40]}
{[%emt 00:17:51]} Nxf5 {[%clk 00:38:09]} {[%emt 00:01:15]} 24. Nxe5 {[%clk
00:17:38]} {[%emt 00:00:35]} Ne7 {[%clk 00:30:02]} {[%emt 00:08:34]} 25. Nxf7+
{[%clk 00:17:48]} {[%emt 00:00:39]} Kg7 {[%clk 00:30:28]} 26. Nxd8 {[%clk
00:18:13]} Rxd8 {[%clk 00:30:55]} 27. Rd2 {[%clk 00:15:54]} {[%emt 00:02:43]}
Rf8 {[%clk 00:31:07]} {[%emt 00:00:30]} 28. exd5 {[%clk 00:15:24]} {[%emt
00:00:54]} cxd5 {[%clk 00:30:21]} {[%emt 00:01:09]} 29. Kd1 {[%clk 00:15:35]}
{[%emt 00:00:22]} Rf4 {[%clk 00:30:44]} {[%emt 00:00:05]} 30. Re1 {[%clk
00:15:11]} {[%emt 00:00:54]} Rxa4 {[%clk 00:31:05]} {[%emt 00:00:08]} 31. Re6
{[%clk 00:15:05]} {[%emt 00:00:39]} Ra1+ {[%clk 00:30:53]} {[%emt 00:00:47]} 32.
Ke2 {[%clk 00:15:28]} a4 {[%clk 00:31:17]} {[%emt 00:00:32]} 33. Ra6 {[%clk
00:13:34]} {[%emt 00:02:26]} a3 {[%clk 00:31:30]} {[%emt 00:00:03]} 34. bxa3
{[%clk 00:14:00]} Ra2 {[%clk 00:31:53]} 35. Ra5 {[%clk 00:14:15]} {[%emt
00:00:11]} b2 {[%clk 00:32:15]} {[%emt 00:00:10]} 36. Rb5 {[%clk 00:14:37]}
{[%emt 00:00:13]} Bxa3 {[%clk 00:32:36]} {[%emt 00:00:06]} 37. f4 {[%clk
00:06:40]} {[%emt 00:08:36]} Nf5 {[%clk 00:26:08]} {[%emt 00:07:02]} 38. Kd3
{[%clk 00:02:14]} {[%emt 00:04:39]} Nd6 {[%clk 00:26:25]} {[%emt 00:00:35]} 39.
Rdxb2 {[%clk 00:02:00]} {[%emt 00:00:26]} Rxb2 {[%clk 00:26:42]} {[%emt
00:00:45]} 40. Rxb2 {[%clk 00:32:15]} Bxb2 {[%clk 00:57:07]} 41. Kd4 {[%clk
00:32:34]} Nf5+ {[%clk 00:57:17]} {[%emt 00:00:17]} 42. Kd3 {[%clk 00:25:44]}
{[%emt 00:07:20]} h5 {[%emt 00:00:58]} 43. Kd4 {[%emt 00:00:12]} 0-1

[Event "US Open 2021"]
[Site "Crowne Plaza Cherry Hill, United States"]
[Date "2021.08.06"]
[Round "7.10"]
[White "Rosenthal, Nicholas"]
[Black "Fishbein, Alexander"]
[Result "1-0"]
[TimeControl "40/100;SD/30;+30"]
[BlackTitle "GM"]
[WhiteElo "2240"]
[BlackElo "2537"]

1. e4 {[%clk 01:40:59]} c5 {[%clk 01:32:42]} {[%emt 00:08:10]} 2. Nf3 {[%clk
01:41:17]} d6 {[%clk 01:33:10]} {[%emt 00:00:24]} 3. Bb5+ {[%clk 01:41:40]} Bd7
{[%clk 01:33:37]} 4. Bxd7+ {[%clk 01:42:03]} Nxd7 {[%clk 01:34:05]} 5. O-O
{[%clk 01:42:24]} {[%emt 00:00:18]} Ngf6 {[%clk 01:34:33]} 6. Re1 {[%clk
01:42:44]} e6 {[%clk 01:34:13]} {[%emt 00:00:51]} 7. c4 {[%clk 01:42:55]}
{[%emt 00:00:16]} Be7 {[%clk 01:34:31]} {[%emt 00:00:35]} 8. d4 {[%clk
01:41:57]} {[%emt 00:01:18]} cxd4 {[%clk 01:34:24]} {[%emt 00:00:41]} 9. Nxd4
{[%clk 01:41:29]} {[%emt 00:00:47]} O-O {[%clk 01:33:58]} {[%emt 00:00:48]} 10.
b3 {[%clk 01:41:40]} {[%emt 00:00:42]} a6 {[%clk 01:28:39]} {[%emt 00:05:35]}
11. Nc3 {[%clk 01:39:45]} {[%emt 00:02:22]} Qa5 {[%clk 01:24:47]} {[%emt
00:04:38]} 12. Bb2 {[%clk 01:39:52]} {[%emt 00:00:07]} Rfc8 {[%clk 01:22:18]}
{[%emt 00:03:32]} 13. Qd2 {[%clk 01:37:08]} {[%emt 00:02:48]} Rab8 {[%clk
01:15:45]} {[%emt 00:06:53]} 14. a4 {[%clk 01:32:41]} {[%emt 00:05:17]} Nc5
{[%clk 01:08:00]} {[%emt 00:07:54]} 15. Qc2 {[%clk 01:29:55]} {[%emt 00:03:15]}
Qb6 {[%clk 01:06:49]} {[%emt 00:01:42]} 16. Re3 {[%clk 01:29:15]} {[%emt
00:01:10]} h6 {[%clk 00:55:22]} {[%emt 00:12:09]} 17. h3 {[%clk 01:24:31]}
{[%emt 00:05:36]} Bf8 {[%clk 00:52:08]} {[%emt 00:03:12]} 18. Nb1 {[%clk
01:23:51]} {[%emt 00:01:34]} d5 {[%clk 00:43:26]} {[%emt 00:08:53]} 19. exd5
{[%clk 01:23:51]} {[%emt 00:00:26]} exd5 {[%clk 00:43:18]} {[%emt 00:01:02]} 20.
a5 {[%clk 01:22:37]} {[%emt 00:01:17]} Qd8 {[%clk 00:40:54]} {[%emt 00:02:55]}
21. Nd2 {[%clk 01:22:17]} {[%emt 00:01:29]} Nce4 {[%clk 00:35:18]} {[%emt
00:05:27]} 22. Nxe4 {[%clk 01:21:29]} {[%emt 00:01:20]} Nxe4 {[%clk 00:34:48]}
{[%emt 00:01:20]} 23. Rd1 {[%clk 01:20:40]} {[%emt 00:01:21]} Bc5 {[%clk
00:19:44]} {[%emt 00:15:11]} 24. Ne6 {[%clk 01:17:34]} {[%emt 00:04:13]} fxe6
{[%clk 00:13:40]} {[%emt 00:05:58]} 25. Rxe4 {[%clk 01:17:56]} {[%emt
00:00:34]} Bf8 {[%clk 00:10:38]} {[%emt 00:03:31]} 26. Rxe6 {[%clk 01:18:07]}
Qd7 {[%clk 00:09:14]} {[%emt 00:01:49]} 27. Re5 {[%clk 01:17:43]} {[%emt
00:00:51]} Qf7 {[%clk 00:09:05]} {[%emt 00:01:03]} 28. Rf5 {[%clk 01:17:25]}
{[%emt 00:00:25]} Qe6 {[%clk 00:09:05]} {[%emt 00:00:31]} 29. Rfxd5 {[%clk
01:17:43]} {[%emt 00:00:23]} Re8 {[%clk 00:09:05]} {[%emt 00:00:18]} 30. Qc3
{[%clk 01:17:39]} {[%emt 00:00:44]} Qg6 {[%clk 00:09:06]} {[%emt 00:00:18]} 31.
Qd3 {[%clk 01:14:58]} {[%emt 00:03:09]} Qxd3 {[%clk 00:09:12]} {[%emt
00:00:44]} 32. R1xd3 {[%clk 01:15:07]} {[%emt 00:00:14]} Re1+ {[%clk 00:09:28]}
{[%emt 00:00:24]} 33. Kh2 {[%clk 01:15:31]} Rbe8 {[%clk 00:09:37]} {[%emt
00:00:43]} 34. Rd7 {[%clk 01:15:39]} R8e6 {[%clk 00:06:50]} {[%emt 00:03:22]}
35. Rd8 {[%clk 01:15:35]} {[%emt 00:01:37]} R1e2 {[%clk 00:06:24]} 36. Ba3
{[%clk 01:14:39]} {[%emt 00:01:02]} Re8 {[%clk 00:04:57]} {[%emt 00:02:28]} 37.
Rxe8 {[%clk 01:14:52]} Rxe8 {[%clk 00:05:25]} 38. Bxf8 {[%clk 01:15:17]} Rxf8
{[%clk 00:05:48]} {[%emt 00:00:24]} 39. Rd7 {[%clk 01:15:11]} {[%emt 00:00:09]}
Rxf2 {[%clk 00:06:13]} {[%emt 00:00:34]} 40. Rxb7 {[%clk 01:45:39]} Kf8 {[%clk
00:36:25]} 41. b4 {[%clk 01:45:47]} {[%emt 00:00:15]} Ra2 {[%clk 00:36:28]}
{[%emt 00:00:35]} 42. c5 {[%clk 01:45:48]} {[%emt 00:00:33]} Rc2 {[%clk
00:36:55]} 43. Kg3 {[%clk 01:45:17]} {[%emt 00:00:49]} Rc4 {[%clk 00:37:17]}
{[%emt 00:00:57]} 44. Kf3 {[%clk 01:45:41]} g5 {[%clk 00:37:34]} 45. Ke3 {[%clk
01:46:05]} Ke8 {[%clk 00:38:02]} 46. Kd3 {[%clk 01:46:27]} Rf4 {[%clk
00:38:28]} 47. b5 {[%clk 01:46:30]} {[%emt 00:00:21]} Kd8 {[%clk 00:38:43]}
{[%emt 00:00:20]} 48. bxa6 {[%clk 01:46:48]} {[%emt 00:00:09]} Kc8 {[%clk
00:38:40]} {[%emt 00:00:29]} 49. c6 {[%clk 01:47:12]} {[%emt 00:00:37]} 1-0

[Event "US Open 2021"]
[Site "Crowne Plaza Cherry Hill, United States"]
[Date "2021.08.06"]
[Round "7.11"]
[White "Molner, Mackenzie S"]
[Black "Vanapalli, Vishnu"]
[Result "1/2-1/2"]
[TimeControl "40/100;SD/30;+30"]
[WhiteTitle "GM"]
[WhiteElo "2517"]
[BlackElo "2180"]

1. e4 {[%clk 01:40:59]} {[%emt 00:00:19]} e5 {[%clk 01:39:00]} {[%emt
00:01:50]} 2. Nf3 {[%clk 01:41:20]} Nc6 {[%clk 01:38:35]} {[%emt 00:01:47]} 3.
Bc4 {[%clk 01:41:24]} Bc5 {[%clk 01:38:43]} 4. c3 {[%clk 01:41:12]} {[%emt
00:00:48]} Nf6 {[%clk 01:38:57]} {[%emt 00:00:06]} 5. d3 {[%clk 01:39:49]}
{[%emt 00:01:57]} d6 {[%clk 01:38:44]} {[%emt 00:00:37]} 6. O-O {[%clk
01:39:46]} {[%emt 00:00:37]} O-O {[%clk 01:38:48]} {[%emt 00:00:26]} 7. a4
{[%clk 01:38:33]} {[%emt 00:01:53]} a5 {[%clk 01:38:38]} {[%emt 00:00:42]} 8.
Nbd2 {[%clk 01:37:24]} {[%emt 00:01:42]} Ba7 {[%clk 01:37:40]} {[%emt
00:01:28]} 9. h3 {[%clk 01:35:59]} {[%emt 00:01:35]} Ne7 {[%clk 01:37:19]}
{[%emt 00:01:21]} 10. Re1 {[%clk 01:35:25]} {[%emt 00:00:34]} Ng6 {[%clk
01:36:01]} {[%emt 00:01:57]} 11. Nf1 {[%clk 01:27:56]} {[%emt 00:08:00]} c6
{[%clk 01:32:20]} {[%emt 00:04:27]} 12. Ng3 {[%clk 01:27:49]} {[%emt 00:00:27]}
Re8 {[%clk 01:30:53]} {[%emt 00:01:48]} 13. Bb3 {[%clk 01:24:37]} {[%emt
00:03:41]} h6 {[%clk 01:26:43]} {[%emt 00:04:37]} 14. d4 {[%clk 01:23:34]}
{[%emt 00:01:38]} Be6 {[%clk 01:18:44]} {[%emt 00:08:23]} 15. Be3 {[%clk
01:14:16]} {[%emt 00:09:50]} Qc7 {[%clk 01:16:42]} {[%emt 00:02:47]} 16. Qc2
{[%clk 01:05:56]} {[%emt 00:08:41]} Bxb3 {[%clk 01:04:18]} {[%emt 00:12:42]} 17.
Qxb3 {[%clk 01:06:20]} {[%emt 00:01:02]} d5 {[%clk 01:01:58]} {[%emt 00:02:23]}
18. Nxe5 {[%clk 00:57:40]} {[%emt 00:09:08]} Nxe4 {[%clk 01:00:52]} {[%emt
00:01:16]} 19. Nxe4 {[%clk 00:52:58]} {[%emt 00:05:05]} Nxe5 {[%clk 01:00:17]}
{[%emt 00:01:03]} 20. dxe5 {[%clk 00:52:49]} {[%emt 00:01:29]} Bxe3 {[%clk
00:59:14]} {[%emt 00:00:45]} 21. Rxe3 {[%clk 00:51:48]} {[%emt 00:01:39]} dxe4
{[%clk 00:59:29]} {[%emt 00:00:16]} 22. Rxe4 {[%clk 00:51:30]} {[%emt
00:00:41]} Rxe5 {[%clk 00:58:54]} {[%emt 00:01:03]} 23. Rxe5 {[%clk 00:51:50]}
{[%emt 00:00:13]} Qxe5 {[%clk 00:59:18]} {[%emt 00:00:09]} 24. Qxb7 {[%clk
00:51:36]} {[%emt 00:00:57]} Rb8 {[%clk 00:55:48]} {[%emt 00:04:16]} 25. Qxc6
{[%clk 00:51:44]} Rxb2 {[%clk 00:56:08]} 26. Qc8+ {[%clk 00:49:35]} {[%emt
00:02:46]} Kh7 {[%clk 00:56:18]} {[%emt 00:01:33]} 27. Qc4 {[%clk 00:49:11]}
Qf6 {[%clk 00:41:07]} {[%emt 00:15:17]} 28. Qc5 {[%clk 00:42:31]} {[%emt
00:07:30]} Rc2 {[%clk 00:35:04]} {[%emt 00:06:07]} 29. Rd1 {[%clk 00:42:02]}
{[%emt 00:01:13]} Ra2 {[%clk 00:20:21]} {[%emt 00:15:01]} 30. Qd4 {[%clk
00:37:56]} {[%emt 00:04:34]} Qc6 {[%clk 00:20:13]} {[%emt 00:00:39]} 31. Qd3+
{[%clk 00:08:52]} {[%emt 00:29:33]} g6 {[%clk 00:16:53]} {[%emt 00:04:22]} 32.
Qd7 {[%clk 00:07:55]} {[%emt 00:01:44]} Qxd7 {[%clk 00:13:07]} {[%emt
00:03:27]} 33. Rxd7 {[%clk 00:08:18]} {[%emt 00:00:15]} Rxa4 {[%clk 00:12:26]}
{[%emt 00:01:12]} 34. Rxf7+ {[%clk 00:08:40]} Kg8 {[%clk 00:12:52]} {[%emt
00:00:05]} 35. Rc7 {[%clk 00:08:41]} {[%emt 00:00:31]} h5 {[%clk 00:08:55]}
{[%emt 00:04:22]} 36. g3 {[%clk 00:08:35]} {[%emt 00:00:59]} Ra2 {[%clk
00:08:53]} {[%emt 00:00:18]} 37. Kg2 {[%clk 00:05:58]} {[%emt 00:02:58]} Rc2
{[%clk 00:08:47]} {[%emt 00:00:35]} 38. Ra7 {[%clk 00:04:12]} {[%emt 00:02:16]}
Rxc3 {[%clk 00:09:08]} {[%emt 00:01:10]} 39. Rxa5 {[%clk 00:04:39]} Kg7 {[%clk
00:09:29]} 40. Re5 {[%clk 00:33:27]} {[%emt 00:00:53]} Kf6 {[%clk 00:39:18]}
{[%emt 00:01:22]} 41. Re3 {[%clk 00:30:04]} {[%emt 00:03:38]} Rc2 {[%clk
00:37:35]} {[%emt 00:02:01]} 42. h4 {[%clk 00:28:45]} {[%emt 00:01:42]} Ra2
{[%clk 00:36:42]} {[%emt 00:01:15]} 43. Kf3 {[%clk 00:28:54]} {[%emt 00:00:51]}
Ra4 {[%clk 00:32:01]} {[%emt 00:04:41]} 44. Re4 {[%clk 00:29:14]} {[%emt
00:00:14]} Ra2 {[%clk 00:31:07]} {[%emt 00:01:21]} 45. Ke3 {[%clk 00:27:31]}
{[%emt 00:02:16]} Rb2 {[%clk 00:30:59]} {[%emt 00:00:34]} 46. f3 {[%clk
00:26:43]} {[%emt 00:02:05]} Rb3+ {[%clk 00:28:31]} {[%emt 00:02:12]} 47. Kf4
{[%clk 00:27:04]} {[%emt 00:00:23]} Rb5 {[%clk 00:28:51]} 48. Ra4 {[%clk
00:27:20]} {[%emt 00:00:25]} Rc5 {[%clk 00:28:15]} {[%emt 00:01:20]} 49. Ra6+
{[%clk 00:27:12]} {[%emt 00:00:46]} Kg7 {[%clk 00:28:12]} 50. Re6 {[%clk
00:27:12]} {[%emt 00:00:25]} Rc4+ {[%clk 00:27:27]} {[%emt 00:01:16]} 51. Re4
{[%clk 00:27:22]} {[%emt 00:00:20]} Rc3 {[%clk 00:26:42]} {[%emt 00:01:15]} 52.
g4 {[%clk 00:27:17]} {[%emt 00:00:35]} hxg4 {[%clk 00:25:41]} {[%emt 00:02:07]}
53. fxg4 {[%clk 00:27:27]} {[%emt 00:00:04]} Rc5 {[%clk 00:24:48]} {[%emt
00:01:30]} 54. Re5 {[%clk 00:27:28]} {[%emt 00:00:04]} Rc7 {[%clk 00:23:14]}
{[%emt 00:02:18]} 55. Kg5 {[%clk 00:27:50]} Ra7 {[%clk 00:23:11]} {[%emt
00:00:38]} 56. Rd5 {[%clk 00:27:35]} {[%emt 00:00:44]} 1/2-1/2

[Event "US Open 2021"]
[Site "Crowne Plaza Cherry Hill, United States"]
[Date "2021.08.06"]
[Round "7.12"]
[White "Akobian, varuzhan"]
[Black "Macaspac, Arthur"]
[Result "1-0"]
[TimeControl "40/100;SD/30;+30"]
[WhiteTitle "GM"]
[WhiteElo "2678"]
[BlackElo "2230"]

1. d4 {[%clk 01:40:58]} {[%emt 00:00:25]} d5 {[%clk 01:34:10]} {[%emt
00:06:42]} 2. c4 {[%clk 01:41:12]} {[%emt 00:00:31]} c6 {[%clk 01:34:29]} 3.
cxd5 {[%clk 01:40:40]} {[%emt 00:00:43]} cxd5 {[%clk 01:34:47]} {[%emt
00:00:33]} 4. Nf3 {[%clk 01:40:56]} Nc6 {[%clk 01:34:54]} {[%emt 00:01:04]} 5.
Nc3 {[%clk 01:41:20]} Nf6 {[%clk 01:31:19]} {[%emt 00:03:22]} 6. Bf4 {[%clk
01:40:56]} {[%emt 00:00:56]} e6 {[%clk 01:29:03]} {[%emt 00:02:53]} 7. e3
{[%clk 01:40:34]} {[%emt 00:00:47]} a6 {[%clk 01:25:29]} {[%emt 00:04:16]} 8.
Bd3 {[%clk 01:40:36]} {[%emt 00:00:18]} Be7 {[%clk 01:24:57]} {[%emt 00:00:54]}
9. Ne5 {[%clk 01:37:35]} {[%emt 00:03:41]} Bd7 {[%clk 01:21:49]} {[%emt
00:03:30]} 10. Rc1 {[%clk 01:37:15]} {[%emt 00:00:51]} O-O {[%clk 01:20:39]}
{[%emt 00:01:51]} 11. O-O {[%clk 01:35:23]} {[%emt 00:02:07]} Qa5 {[%clk
01:13:58]} {[%emt 00:08:12]} 12. Bg5 {[%clk 01:35:12]} Qd8 {[%clk 01:09:16]}
{[%emt 00:04:56]} 13. f4 {[%clk 01:34:28]} {[%emt 00:01:44]} b5 {[%clk
00:55:22]} {[%emt 00:13:52]} 14. Rf3 {[%clk 01:28:44]} {[%emt 00:06:46]} b4
{[%clk 00:52:35]} {[%emt 00:02:57]} 15. Bxf6 {[%clk 01:28:35]} {[%emt
00:01:00]} Bxf6 {[%clk 00:49:08]} {[%emt 00:03:27]} 16. Bxh7+ {[%clk 01:28:34]}
{[%emt 00:01:11]} Kxh7 {[%clk 00:48:57]} 17. Rh3+ {[%clk 01:28:55]} {[%emt
00:00:11]} 1-0